fUSD/lending_fUSD_20260413
["ID","MTS","AMOUNT","RATE_DAILY","PERIOD"]
[420379113,1776045100678,-55.88119014,0.00039178,15]
[420379114,1776045100699,-2122.98,0.00039178,15]
[420379115,1776045100714,-868.59,0.00039178,15]
[420379116,1776045100725,-483.44055,0.00039178,30]
[420379117,1776045100756,-584.05,0.00039178,15]
[420379118,1776045100797,-151.0,0.00039178,30]
[420379119,1776045100817,-1895.21,0.00039178,15]
[420379120,1776045100857,-697.91,0.00039178,15]
[420379121,1776045100881,-1032.41,0.00039178,15]
[420379122,1776045100893,-1360.22,0.00039178,15]
[420379123,1776045100932,-483.44055,0.00039178,30]
[420379124,1776045100942,-151.0,0.00039178,30]
[420379125,1776045100956,-610.35,0.00039178,15]
[420379126,1776045100979,-1695.39,0.00039178,15]
[420379127,1776045100988,-500.0,0.00039178,15]
[420379128,1776045101013,-483.44055,0.00039178,30]
[420379129,1776045101024,-674.86,0.00039178,15]
[420379130,1776045101056,-500.0,0.00039178,15]
[420379131,1776045101065,-500.0,0.00039178,15]
[420379132,1776045101075,-960.1,0.00039178,15]
[420379133,1776045101112,-2144.54,0.00039178,15]
[420379134,1776045101127,-733.38,0.00039178,15]
[420379135,1776045101149,-500.0,0.00039178,15]
[420379136,1776045101158,-151.0,0.00039178,30]
[420379137,1776045101173,-500.0,0.00039178,15]
[420379138,1776045101192,-862.24,0.00039178,15]
[420379139,1776045101201,-500.0,0.00039178,15]
[420379140,1776045101211,-500.0,0.00039178,15]
[420379141,1776045101224,-151.0,0.00039178,30]
[420379142,1776045101241,-1454.25,0.00039178,15]
[420379143,1776045101262,-1394.46,0.00039178,15]
[420379144,1776045101275,-1764.57,0.00039178,15]
[420379145,1776045101302,-500.0,0.00039178,15]
[420379146,1776045101312,-1680.05,0.00039178,15]
[420379147,1776045101332,-819.87,0.00039178,15]
[420379148,1776045101344,-500.0,0.00039178,15]
[420379149,1776045101354,-807.33,0.00039178,15]
[420379150,1776045101377,-151.0,0.00039178,30]
[420379151,1776045101388,-602.86,0.00039178,15]
[420379152,1776045101400,-1559.67,0.00039178,15]
[420379153,1776045101410,-500.0,0.00039178,15]
[420379154,1776045101426,-151.0,0.00039178,30]
[420379155,1776045101435,-1827.6,0.00039178,15]
[420379156,1776045101449,-518.9,0.00039178,15]
[420379157,1776045101474,-960.52,0.00039178,15]
[420379158,1776045101489,-500.0,0.00039178,15]
[420379159,1776045101501,-706.97,0.00039178,15]
[420379160,1776045101516,-1608.68,0.00039178,15]
[420379161,1776045101532,-962.89,0.00039178,15]
[420379162,1776045101551,-500.0,0.00039178,15]
[420379163,1776045101563,-759.58,0.00039178,15]
[420379164,1776045101587,-500.0,0.00039178,15]
[420379165,1776045101596,-1447.49,0.00039178,15]
[420379166,1776045101613,-500.0,0.00039178,15]
[420379167,1776045101626,-500.0,0.00039178,15]
[420379168,1776045101635,-500.0,0.00039178,15]
[420379169,1776045101656,-1783.67,0.00039178,15]
[420379170,1776045101689,-151.0,0.00039178,30]
[420379171,1776045101698,-500.0,0.00039178,15]
[420379172,1776045101721,-569.71,0.00039178,15]
[420379173,1776045101737,-151.0,0.00039178,30]
[420379174,1776045101774,-500.0,0.00039178,15]
[420379175,1776045101784,-527.4,0.00039178,15]
[420379176,1776045101815,-500.0,0.00039178,15]
[420379177,1776045101825,-488.5381929,0.00039178,15]
[420379178,1776045101846,-1251.66,0.00039178,15]
[420379179,1776045101871,-1885.42,0.00039178,15]
[420379180,1776045101881,-1265.04,0.00039178,15]
[420379181,1776045101900,-500.0,0.00039178,15]
[420379182,1776045101922,-480.46587778,0.00039178,15]
[420379183,1776045101939,-1095.73,0.00039178,15]
[420379184,1776045101961,-1143.33,0.00039178,15]
[420379185,1776045101979,-500.0,0.00039178,15]
[420379186,1776045102011,-631.12,0.00039178,15]
[420379187,1776045102040,-500.0,0.00039178,15]
[420379188,1776045102055,-500.0,0.00039178,15]
[420379189,1776045102077,-1210.72,0.00039178,15]
[420379190,1776045102085,-694.05,0.00039178,15]
[420379191,1776045102111,-241.97248408,0.00039178,15]
[420379192,1776045102121,-2524.27,0.00039178,15]
[420379193,1776045102131,-500.0,0.00039178,15]
[420379194,1776045102144,-500.0,0.00039178,15]
[420379195,1776045102157,-523.89,0.00039178,15]
[420379196,1776045102168,-500.0,0.00039178,15]
[420379197,1776045102177,-151.0,0.00039178,30]
[420379198,1776045102187,-1173.42,0.00039178,15]
[420379199,1776045102199,-500.0,0.00039178,15]
[420379200,1776045102213,-151.0,0.00039178,30]
[420379201,1776045102224,-6071.786346,0.00039178,30]
[420379202,1776045102247,-5959.457757,0.00039178,14]
[420379203,1776045102261,-151.0,0.00039178,30]
[420379204,1776045102288,-6071.786346,0.00039178,30]
[420379205,1776045102311,-5959.457757,0.00039178,14]
[420379206,1776045102325,-741.07,0.00039178,15]
[420379207,1776045102343,-1064.28,0.00039178,15]
[420379208,1776045102358,-253.643914,0.00039178,30]
[420379209,1776045102368,-3851.24,0.00039178,15]
[420379210,1776045102388,-2835.33,0.00039178,15]
[420379211,1776045102404,-5959.457757,0.00039178,14]
[420379212,1776045102414,-6071.786346,0.00039178,30]
[420379213,1776045102438,-253.643914,0.00039178,30]
[420379214,1776045102447,-500.0,0.00039178,15]
[420379215,1776045102457,-151.0,0.00039178,30]
[420379216,1776045102483,-5959.457757,0.00039178,14]
[420379217,1776045102493,-6071.786346,0.00039178,30]
[420379218,1776045102521,-971.65,0.00039178,15]
[420379219,1776045102532,-1599.66,0.00039178,15]
[420379220,1776045102548,-253.643914,0.00039178,30]
[420379221,1776045102568,-236.78262,0.00039178,30]
[420379222,1776045102580,-151.0,0.00039178,30]
[420379223,1776045102589,-214.325665,0.00039178,30]
[420379224,1776045102599,-500.0,0.00039178,15]
[420379225,1776045102612,-236.78262,0.00039178,30]
[420379226,1776045102631,-500.0,0.00039178,15]
[420379227,1776045102640,-253.643914,0.00039178,30]
[420379228,1776045102649,-214.325665,0.00039178,30]
[420379229,1776045102658,-236.78262,0.00039178,30]
[420379230,1776045102676,-214.325665,0.00039178,30]
[420379231,1776045102685,-236.78262,0.00039178,30]
[420379232,1776045102698,-245.449099,0.00039178,30]
[420379233,1776045102708,-214.325665,0.00039178,30]
[420379234,1776045102719,-1704.26,0.00039178,15]
[420379235,1776045102729,-671.9,0.00039178,15]
[420379236,1776045102744,-500.0,0.00039178,15]
[420379237,1776045102754,-988.23,0.00039178,15]
[420379238,1776045102764,-245.449099,0.00039178,30]
[420379239,1776045102774,-1941.02,0.00039178,15]
[420379240,1776045102788,-648.26,0.00039178,15]
[420379241,1776045102801,-245.449099,0.00039178,30]
[420379242,1776045102811,-955.21,0.00039178,15]
[420379243,1776045102822,-245.449099,0.00039178,30]
[420379244,1776045102844,-329.742305,0.00039178,30]
[420379245,1776045102854,-904.96,0.00039178,15]
[420379246,1776045102870,-500.0,0.00039178,15]
[420379247,1776045102880,-500.0,0.00039178,15]
[420379248,1776045102897,-329.742305,0.00039178,30]
[420379249,1776045102914,-495.10253969,0.00039178,15]
[420379250,1776045102936,-972.44,0.00039178,15]
[420379251,1776045102949,-329.742305,0.00039178,30]
[420379252,1776045102976,-879.17,0.00039178,15]
[420379253,1776045102985,-329.742305,0.00039178,30]
[420379254,1776045102999,-500.0,0.00039178,2]
[420379255,1776045103012,-814.87,0.00039178,15]
[420379256,1776045103027,-905.2,0.00039178,15]
[420379257,1776045103037,-567.55223589,0.00039178,15]
[420379258,1776045103049,-500.0,0.00039178,15]
[420379259,1776045103058,-923.674134,0.00039178,30]
[420379260,1776045103074,-537.14,0.00039178,15]
[420379261,1776045103091,-500.0,0.00039178,15]
[420379262,1776045103101,-1294.09,0.00039178,15]
[420379263,1776045103111,-500.0,0.00039178,15]
[420379264,1776045103131,-923.674134,0.00039178,30]
[420379265,1776045103140,-1376.18,0.00039178,15]
[420379266,1776045103150,-923.674134,0.00039178,30]
[420379267,1776045103174,-1216.47,0.00039178,15]
[420379268,1776045103190,-500.0,0.00039178,15]
[420379269,1776045103208,-923.674134,0.00039178,30]
[420379270,1776045103234,-3919.218376,0.00039178,30]
[420379271,1776045103275,-500.0,0.00039178,15]
[420379272,1776045103298,-782.57,0.00039178,15]
[420379273,1776045103308,-500.0,0.00039178,15]
[420379274,1776045103319,-684.66,0.00039178,15]
[420379275,1776045103336,-1827.33,0.00039178,15]
[420379276,1776045103345,-1961.6,0.00039178,15]
[420379277,1776045103359,-3919.218376,0.00039178,30]
[420379278,1776045103376,-765.780198,0.00039178,30]
[420379279,1776045103385,-3919.218376,0.00039178,30]
[420379280,1776045103396,-624.31,0.00039178,15]
[420379281,1776045103413,-151.0,0.00039178,30]
[420379282,1776045103424,-765.780198,0.00039178,30]
[420379283,1776045103434,-3919.218376,0.00039178,30]
[420379284,1776045103446,-178.05618,0.00039178,30]
[420379285,1776045103463,-777.44,0.00039178,15]
[420379286,1776045103474,-594.04,0.00039178,15]
[420379287,1776045103487,-765.780198,0.00039178,30]
[420379288,1776045103503,-2959.3,0.00039178,15]
[420379289,1776045103522,-1294.26,0.00039178,15]
[420379290,1776045103536,-765.780198,0.00039178,30]
[420379291,1776045103551,-500.0,0.00039178,15]
[420379292,1776045103564,-500.0,0.00039178,15]
[420379293,1776045103573,-500.0,0.00039178,15]
[420379294,1776045103585,-549.29,0.00039178,15]
[420379295,1776045103600,-162.327332,0.00039178,30]
[420379296,1776045103609,-151.0,0.00039178,30]
[420379297,1776045103619,-500.0,0.00039178,15]
[420379298,1776045103630,-500.0,0.00039178,15]
[420379299,1776045103644,-536.13901133,0.0003927,30]
[420379300,1776045103654,-3665.46933117,0.00039451,15]
[420379301,1776045103664,-3665.46933116,0.00039451,15]
[420379302,1776045103673,-175.1775,0.00039452,15]
[420379303,1776045103684,-222.862374,0.00039452,30]
[420379304,1776045103696,-222.862374,0.00039452,30]
[420379305,1776045103705,-539.847203,0.00039452,30]
[420379306,1776045103714,-222.862374,0.00039452,30]
[420379307,1776045103727,-1632.541076,0.00039452,30]
[420379308,1776045103739,-222.862365,0.00039452,30]
[420379309,1776045103750,-539.847203,0.00039452,30]
[420379310,1776045103767,-1632.541076,0.00039452,30]
[420379311,1776045103778,-539.847203,0.00039452,30]
[420379312,1776045103787,-1632.541076,0.00039452,30]
[420379313,1776045103801,-539.847211,0.00039452,30]
[420379314,1776045103811,-1632.541079,0.00039452,30]
[420379315,1776045103822,-502.663177,0.00039452,30]
[420379316,1776045103831,-502.663177,0.00039452,30]
[420379317,1776045103844,-346.049356,0.00039452,30]
[420379318,1776045103853,-502.663177,0.00039452,30]
[420379319,1776045103865,-346.049356,0.00039452,30]
[420379320,1776045103874,-502.663183,0.00039452,30]
[420379321,1776045103888,-565.636274,0.00039452,30]
[420379322,1776045103897,-346.049356,0.00039452,30]
[420379323,1776045103913,-565.636274,0.00039452,30]
[420379324,1776045103923,-346.049364,0.00039452,30]
[420379325,1776045103936,-565.636274,0.00039452,30]
[420379326,1776045103949,-151.0,0.00039452,30]
[420379327,1776045103958,-565.636267,0.00039452,30]
[420379328,1776045103969,-151.0,0.00039452,30]
[420379329,1776045103978,-182.079851,0.00039452,30]
[420379330,1776045103990,-151.0,0.00039452,30]
[420379331,1776045104000,-347.550244,0.00039452,30]
[420379332,1776045104010,-182.079851,0.00039452,30]
[420379333,1776045104020,-443.2819,0.00039452,30]
[420379334,1776045104029,-347.550244,0.00039452,30]
[420379335,1776045104044,-182.079851,0.00039452,30]
[420379336,1776045104054,-347.550244,0.00039452,30]
[420379337,1776045104065,-182.079842,0.00039452,30]
[420379338,1776045104077,-347.550234,0.00039452,30]
[420379339,1776045104096,-151.0,0.00039452,30]
[420379340,1776045104108,-666.704272,0.00039452,30]
[420379341,1776045104134,-443.2819,0.00039452,30]
[420379342,1776045104145,-666.704272,0.00039452,30]
[420379343,1776045104162,-443.2819,0.00039452,30]
[420379344,1776045104180,-666.704272,0.00039452,30]
[420379345,1776045104190,-443.281895,0.00039452,30]
[420379346,1776045104220,-666.704273,0.00039452,30]
[420379347,1776045104237,-240.340989,0.00039452,30]
[420379348,1776045104254,-240.340989,0.00039452,30]
[420379349,1776045104278,-240.340989,0.00039452,30]
[420379350,1776045104291,-240.340989,0.00039452,30]
[420379351,1776045104325,-1744.894502,0.00039452,30]
[420379352,1776045104336,-1744.894502,0.00039452,30]
[420379353,1776045104362,-1744.894502,0.00039452,30]
[420379354,1776045104381,-1744.894493,0.00039452,30]
[420379355,1776045104398,-151.0,0.00039452,30]
[420379356,1776045104418,-151.0,0.00039452,30]
[420379357,1776045104450,-399.11984,0.00039452,30]
[420379358,1776045104470,-399.11984,0.00039452,30]
[420379359,1776045104505,-399.11984,0.00039452,30]
[420379360,1776045104517,-399.119833,0.00039452,30]
[420379361,1776045104542,-1027.498187,0.00039452,30]
[420379362,1776045104555,-568.09957,0.00039452,30]
[420379363,1776045104575,-1027.498187,0.00039452,30]
[420379364,1776045104586,-568.09957,0.00039452,30]
[420379365,1776045104596,-971.735373,0.00039452,30]
[420379366,1776045104615,-1027.498187,0.00039452,30]
[420379367,1776045104627,-568.09957,0.00039452,30]
[420379368,1776045104640,-971.735373,0.00039452,30]
[420379369,1776045104660,-1027.498195,0.00039452,30]
[420379370,1776045104677,-568.099566,0.00039452,30]
[420379371,1776045104709,-971.735373,0.00039452,30]
[420379372,1776045104742,-971.735374,0.00039452,30]
[420379373,1776045104754,-451.25190856,0.00039452,15]
[420379374,1776045104770,-500.0,0.00039452,2]
[420379375,1776045104798,-500.0,0.00039452,15]
[420379376,1776045104812,-500.0,0.00039452,15]
[420379377,1776045104842,-500.0,0.00039452,15]
[420379378,1776045104863,-500.0,0.00039452,15]
[420379379,1776045104894,-791.11,0.00039452,15]
[420379380,1776045104904,-347.68760517,0.00039452,15]
[420379381,1776045104925,-500.0,0.00039452,15]
[420379382,1776045104940,-518.29,0.00039452,15]
[420379383,1776045104952,-500.0,0.00039452,15]
[420379384,1776045104986,-500.0,0.00039452,15]
[420379385,1776045104998,-562.49,0.00039452,15]
[420379386,1776045105029,-796.9,0.00039452,15]
[420379387,1776045105038,-500.0,0.00039452,15]
[420379388,1776045105068,-500.0,0.00039452,15]
[420379389,1776045105078,-500.0,0.00039452,15]
[420379390,1776045105087,-696.45,0.00039452,15]
[420379391,1776045105102,-500.0,0.00039452,15]
[420379392,1776045105133,-500.0,0.00039452,15]
[420379393,1776045105146,-707.3,0.00039452,15]
[420379394,1776045105156,-500.0,0.00039452,15]
[420379395,1776045105171,-500.0,0.00039452,15]
[420379396,1776045105189,-500.0,0.00039452,15]
[420379397,1776045105201,-587.96,0.00039452,15]
[420379398,1776045105228,-877.31,0.00039452,15]
[420379399,1776045105238,-500.0,0.00039452,15]
[420379400,1776045105247,-500.0,0.00039452,15]
[420379401,1776045105263,-500.0,0.00039452,15]
[420379402,1776045105278,-500.0,0.00039452,15]
[420379403,1776045105287,-500.0,0.00039452,15]
[420379404,1776045105302,-909.74,0.00039452,15]
[420379405,1776045105318,-1066.16,0.00039452,15]
[420379406,1776045105339,-504.53,0.00039452,15]
[420379407,1776045105350,-641.37153529,0.00039452,15]
[420379408,1776045105917,-125.94846471,0.00039452,15]
[420379409,1776045105930,-218.20685714,0.00039452,15]
[420379410,1776045105961,-694.45314286,0.00039452,15]
[420379411,1776045105973,-500.0,0.00039452,15]
[420379412,1776045105985,-500.0,0.00039452,15]
[420379413,1776045105994,-571.83,0.00039452,15]
[420379414,1776045106006,-1391.88314921,0.00039452,15]
[420379415,1776045106187,-970.0,0.00038156,30]
[420379416,1776045106210,-101.63578796,0.00039452,15]
[420379417,1776045106228,-146.64106283,0.00039452,15]
[420379418,1776045106242,-500.0,0.00039452,15]
[420379419,1776045106273,-529.96,0.00039452,15]
[420379420,1776045106303,-1050.09,0.00039452,15]
[420379421,1776045106312,-505.63,0.00039452,15]
[420379422,1776045106327,-1417.56,0.00039452,15]
[420379423,1776045106355,-500.0,0.00039452,15]
[420379424,1776045106365,-500.0,0.00039452,15]
[420379425,1776045106383,-772.53,0.00039452,15]
[420379426,1776045106402,-500.0,0.00039452,15]
[420379427,1776045106412,-104.94802895,0.00039452,15]
[420379428,1776045106452,-395.05197105,0.00039452,15]
[420379429,1776045106472,-139.209147,0.00039452,15]
[420379430,1776045106727,-734.030853,0.00039452,15]
[420379431,1776045106738,-1120.29,0.00039452,15]
[420379432,1776045106764,-583.92189745,0.00039452,15]
[420379433,1776045106774,-500.0,0.00039452,15]
[420379434,1776045106783,-500.0,0.00039452,15]
[420379435,1776045106801,-500.0,0.00039452,15]
[420379436,1776045106814,-500.0,0.00039452,15]
[420379437,1776045106824,-500.0,0.00039452,15]
[420379438,1776045106847,-500.0,0.00039452,15]
[420379439,1776045106862,-500.0,0.00039452,15]
[420379440,1776045106889,-725.9,0.00039452,15]
[420379441,1776045106918,-500.0,0.00039452,15]
[420379442,1776045106934,-500.0,0.00039452,15]
[420379443,1776045106975,-500.0,0.00039452,15]
[420379444,1776045107011,-622.85,0.00039452,15]
[420379445,1776045107050,-606.71,0.00039452,15]
[420379446,1776045107077,-500.0,0.00039452,15]
[420379447,1776045107108,-566.08,0.00039452,15]
[420379448,1776045107117,-500.0,0.00039452,15]
[420379449,1776045107132,-360.12128805,0.00039452,15]
[420379450,1776045107155,-500.0,0.00039452,15]
[420379451,1776045107164,-1634.91,0.00039452,15]
[420379452,1776045107182,-941.01,0.00039452,15]
[420379453,1776045107197,-792.94,0.00039452,15]
[420379454,1776045107206,-500.0,0.00039452,15]
[420379455,1776045107223,-603.45800929,0.00039452,15]
[420379456,1776045107238,-562.11,0.00039452,15]
[420379457,1776045107251,-585.74249915,0.00039452,15]
[420379458,1776045107260,-622.71,0.00039452,15]
[420379459,1776045107274,-718.47,0.00039452,15]
[420379460,1776045107291,-596.08287742,0.00039452,15]
[420379461,1776045107301,-953.51,0.00039452,15]
[420379462,1776045107313,-2222.66,0.00039452,15]
[420379463,1776045107327,-500.0,0.00039452,15]
[420379464,1776045107341,-990.01,0.00039452,15]
[420379465,1776045107355,-1669.46,0.00039452,15]
[420379466,1776045107384,-1352.92,0.00039452,15]
[420379467,1776045107402,-500.0,0.00039452,15]
[420379468,1776045107427,-1619.22,0.00039452,15]
[420379469,1776045107463,-512.73998663,0.00039452,15]
[420379470,1776045107475,-607.06,0.00039452,15]
[420379471,1776045107487,-500.0,0.00039452,15]
[420379472,1776045107499,-936.88,0.00039452,15]
[420379473,1776045107516,-500.0,0.00039452,15]
[420379474,1776045107543,-500.0,0.00039452,15]
[420379475,1776045107552,-1589.56,0.00039452,15]
[420379476,1776045107571,-1546.76,0.00039452,15]
[420379477,1776045107587,-937.76,0.00039452,15]
[420379478,1776045107598,-500.0,0.00039452,15]
[420379479,1776045107614,-656.6,0.00039452,15]
[420379480,1776045107628,-616.48,0.00039452,15]
[420379481,1776045107640,-551.84,0.00039452,15]
[420379482,1776045107654,-538.22,0.00039452,15]
[420379483,1776045107668,-500.0,0.00039452,15]
[420379484,1776045107685,-552.37357595,0.00039452,30]
[420379485,1776045107694,-500.0,0.00039452,15]
[420379486,1776045107707,-500.0,0.00039452,15]
[420379487,1776045107725,-518.24,0.00039452,15]
[420379488,1776045107735,-500.0,0.00039452,15]
[420379489,1776045107748,-500.0,0.00039452,15]
[420379490,1776045107764,-845.43,0.00039452,15]
[420379491,1776045107782,-244.32015985,0.00039452,15]
[420379492,1776045107791,-500.0,0.00039452,15]
[420379493,1776045107807,-1323.56,0.00039452,15]
[420379494,1776045107824,-1364.85,0.00039452,15]
[420379495,1776045107853,-1903.17,0.00039452,15]
[420379496,1776045107863,-500.0,0.00039452,15]
[420379497,1776045107884,-590.95,0.00039452,15]
[420379498,1776045107907,-2118.26,0.00039452,15]
[420379499,1776045107924,-1067.1,0.00039452,7]
[420379500,1776045107952,-1021.75,0.00039452,15]
[420379501,1776045107962,-1028.39,0.00039452,15]
[420379502,1776045107977,-500.0,0.00039452,15]
[420379503,1776045108000,-1047.56,0.00039452,15]
[420379504,1776045108010,-783.46,0.00039452,15]
[420379505,1776045108029,-645.13,0.00039452,15]
[420379506,1776045108042,-500.0,0.00039452,15]
[420379507,1776045108063,-500.0,0.00039452,7]
[420379508,1776045108078,-500.0,0.00039452,15]
[420379509,1776045108088,-1645.68,0.00039452,15]
[420379510,1776045108107,-530.83,0.00039452,15]
[420379511,1776045108119,-1228.63,0.00039452,15]
[420379512,1776045108130,-500.0,0.00039452,15]
[420379513,1776045108147,-535.68,0.00039452,15]
[420379514,1776045108161,-500.0,0.00039452,15]
[420379515,1776045108172,-869.9,0.00039452,15]
[420379516,1776045108181,-500.0,0.00039452,15]
[420379517,1776045108200,-2934.93,0.00039452,15]
[420379518,1776045108209,-739.62,0.00039452,10]
[420379519,1776045108220,-557.93,0.00039452,15]
[420379520,1776045108231,-500.0,0.00039452,15]
[420379521,1776045108244,-500.0,0.00039452,15]
[420379522,1776045108255,-526.96664077,0.00039452,15]
[420379523,1776045108265,-596.15,0.00039452,15]
[420379524,1776045108274,-2291.01,0.00039452,15]
[420379525,1776045108283,-351.61069153,0.00039452,15]
[420379526,1776045108293,-1647.84,0.00039452,15]
[420379527,1776045108303,-500.0,0.00039452,120]
[420379528,1776045108313,-562.41,0.00039452,15]
[420379529,1776045108324,-500.0,0.00039452,15]
[420379530,1776045108334,-1921.08,0.00039452,15]
[420379531,1776045108345,-500.0,0.00039452,15]
[420379532,1776045108355,-1192.64,0.00039452,15]
[420379533,1776045108364,-606.3,0.00039452,15]
[420379534,1776045108374,-944.95,0.00039452,15]
[420379535,1776045108385,-500.0,0.00039452,15]
[420379536,1776045108396,-1347.73,0.00039452,15]
[420379537,1776045108405,-818.57,0.00039452,15]
[420379538,1776045108415,-720.41,0.00039452,15]
[420379539,1776045108424,-500.0,0.00039452,15]
[420379540,1776045108437,-570.58,0.00039452,15]
[420379541,1776045108446,-534.25,0.00039452,15]
[420379542,1776045108458,-574.61,0.00039452,15]
[420379543,1776045108467,-500.0,0.00039452,15]
[420379544,1776045108477,-726.29,0.00039452,15]
[420379545,1776045108491,-756.84,0.00039452,15]
[420379546,1776045108501,-500.0,0.00039452,15]
[420379547,1776045108511,-1455.8,0.00039452,15]
[420379548,1776045108521,-1740.92,0.00039452,15]
[420379549,1776045108531,-1211.46,0.00039452,15]
[420379550,1776045108540,-500.0,0.00039452,15]
[420379551,1776045108550,-716.37,0.00039452,15]
[420379552,1776045108561,-975.01,0.00039452,15]
[420379553,1776045108571,-500.0,0.00039452,15]
[420379554,1776045108582,-209.49412312,0.00039452,15]
[420379555,1776045108591,-519.23,0.00039452,15]
[420379556,1776045108602,-1341.38,0.00039452,15]
[420379557,1776045108614,-500.0,0.00039452,15]
[420379558,1776045108623,-500.0,0.00039452,15]
[420379559,1776045108632,-500.0,0.00039452,15]
[420379560,1776045108646,-1016.54,0.00039452,15]
[420379561,1776045108659,-1767.74,0.00039452,15]
[420379562,1776045108670,-500.0,0.00039452,15]
[420379563,1776045108684,-826.92,0.00039452,15]
[420379564,1776045108711,-623.55,0.00039452,15]
[420379565,1776045108720,-942.64,0.00039452,15]
[420379566,1776045108737,-500.0,0.00039452,15]
[420379567,1776045108756,-500.0,0.00039452,15]
[420379568,1776045108766,-547.63,0.00039452,15]
[420379569,1776045108794,-623.88,0.00039452,15]
[420379570,1776045108809,-1323.01,0.00039452,15]
[420379571,1776045108818,-877.39,0.00039452,15]
[420379572,1776045108837,-539.4,0.00039452,15]
[420379573,1776045108865,-1572.86,0.00039452,10]
[420379574,1776045108880,-500.0,0.00039452,15]
[420379575,1776045108893,-500.0,0.00039452,15]
[420379576,1776045108907,-769.05,0.00039452,15]
[420379577,1776045108926,-1302.03,0.00039452,15]
[420379578,1776045108943,-882.58,0.00039452,15]
[420379579,1776045108963,-500.0,0.00039452,15]
[420379580,1776045109005,-737.29,0.00039452,15]
[420379581,1776045109027,-579.26,0.00039452,15]
[420379582,1776045109041,-500.0,0.00039452,15]
[420379583,1776045109051,-850.8,0.00039452,15]
[420379584,1776045109063,-1330.57,0.00039452,15]
[420379585,1776045109413,-890.12,0.00039452,15]
[420379586,1776045109433,-1205.8,0.00039452,15]
[420379587,1776045109454,-1151.94,0.00039452,15]
[420379588,1776045109476,-500.0,0.00039452,15]
[420379589,1776045109488,-500.0,0.00039452,15]
[420379590,1776045109521,-500.0,0.00039452,15]
[420379591,1776045109559,-1291.49,0.00039452,15]
[420379592,1776045109570,-1655.72,0.00039452,15]
[420379593,1776045109607,-500.0,0.00039452,15]
[420379594,1776045109624,-500.0,0.00039452,15]
[420379595,1776045109654,-785.47,0.00039452,15]
[420379596,1776045109666,-500.0,0.00039452,15]
[420379597,1776045109693,-500.0,0.00039452,15]
[420379598,1776045109703,-552.43,0.00039452,15]
[420379599,1776045109724,-500.0,0.00039452,15]
[420379600,1776045109738,-668.46,0.00039452,15]
[420379601,1776045109748,-500.0,0.00039452,15]
[420379602,1776045109759,-845.76,0.00039452,15]
[420379603,1776045109785,-968.44,0.00039452,15]
[420379604,1776045109796,-500.0,0.00039452,15]
[420379605,1776045109835,-500.0,0.00039452,15]
[420379606,1776045109847,-1079.06,0.00039452,15]
[420379607,1776045109866,-500.0,0.00039452,15]
[420379608,1776045109878,-500.0,0.00039452,15]
[420379609,1776045109895,-500.0,0.00039452,15]
[420379610,1776045109923,-1246.57,0.00039452,15]
[420379611,1776045109939,-500.0,0.00039452,15]
[420379612,1776045109978,-500.0,0.00039452,15]